[Event "*** Titled Tuesday Blitz"]
[Site "Chess.com"]
[Date "2019.05.07"]
[Round "3"]
[White "x-6099009240"]
[Black "Slovak_fighter2000"]
[Result "1-0"]
[WhiteElo "2373"]
[BlackElo "2440"]
[TimeControl "180+2"]
[EndTime "13:39:46 PDT"]
[Termination "x-6099009240 won on time"]

1. e4 {[%clk 0:02:50.5]} 1... e6 {[%clk 0:02:58]} 2. d4 {[%clk 0:02:51.2]} 2...
d5 {[%clk 0:02:58.8]} 3. Nd2 {[%clk 0:02:52.8]} 3... a6 {[%clk 0:02:58.5]} 4.
Ngf3 {[%clk 0:02:53.1]} 4... c5 {[%clk 0:02:59.2]} 5. exd5 {[%clk 0:02:54.3]}
5... exd5 {[%clk 0:03:01.1]} 6. dxc5 {[%clk 0:02:52.6]} 6... Bxc5 {[%clk
0:03:02.2]} 7. Bd3 {[%clk 0:02:54.2]} 7... Qe7+ {[%clk 0:02:58.2]} 8. Qe2 {[%clk
0:02:54.2]} 8... Qxe2+ {[%clk 0:02:57.5]} 9. Bxe2 {[%clk 0:02:56.1]} 9... Nf6
{[%clk 0:02:59.1]} 10. Nb3 {[%clk 0:02:57.3]} 10... Bb6 {[%clk 0:02:59.6]} 11.
O-O {[%clk 0:02:58.7]} 11... Nc6 {[%clk 0:03:01]} 12. c3 {[%clk 0:02:59.6]}
12... Bg4 {[%clk 0:03:01.6]} 13. h3 {[%clk 0:03:00.5]} 13... Bh5 {[%clk
0:03:02.6]} 14. Bg5 {[%clk 0:03:01.3]} 14... O-O {[%clk 0:03:00.5]} 15. Bxf6
{[%clk 0:03:02.3]} 15... gxf6 {[%clk 0:03:01.5]} 16. Rad1 {[%clk 0:03:02.9]}
16... Rad8 {[%clk 0:03:01.6]} 17. g4 {[%clk 0:02:58.8]} 17... Bg6 {[%clk
0:03:02.6]} 18. Nfd4 {[%clk 0:02:58.7]} 18... Rfe8 {[%clk 0:03:03.1]} 19. Bf3
{[%clk 0:02:56]} 19... Ne5 {[%clk 0:03:01.4]} 20. Bg2 {[%clk 0:02:54.5]} 20...
Nc4 {[%clk 0:02:58.6]} 21. f4 {[%clk 0:02:33.3]} 21... Nxb2 {[%clk 0:02:53.3]}
22. f5 {[%clk 0:02:32.6]} 22... Nxd1 {[%clk 0:02:52.3]} 23. Rxd1 {[%clk
0:02:34.5]} 23... Re2 {[%clk 0:02:49.9]} 24. fxg6 {[%clk 0:02:34]} 24... fxg6
{[%clk 0:02:47]} 25. Rd2 {[%clk 0:02:35.9]} 25... Rxd2 {[%clk 0:02:38.4]} 26.
Nxd2 {[%clk 0:02:37.8]} 26... Bxd4+ {[%clk 0:02:17.5]} 27. cxd4 {[%clk
0:02:38.5]} 27... Kf7 {[%clk 0:02:18.7]} 28. Nf1 {[%clk 0:02:36]} 28... Ke6
{[%clk 0:02:16.5]} 29. Ne3 {[%clk 0:02:37.5]} 29... f5 {[%clk 0:02:13.7]} 30.
gxf5+ {[%clk 0:02:29.7]} 30... gxf5 {[%clk 0:02:15]} 31. Kf2 {[%clk 0:02:31.6]}
31... f4 {[%clk 0:02:10.6]} 32. Nc2 {[%clk 0:02:24.2]} 32... a5 {[%clk
0:02:07.8]} 33. Ne1 {[%clk 0:02:11.1]} 33... Rc8 {[%clk 0:02:02]} 34. Ke2 {[%clk
0:02:12.1]} 34... Rc4 {[%clk 0:01:50.6]} 35. Kd3 {[%clk 0:02:04.2]} 35... Ra4
{[%clk 0:01:50.3]} 36. Bf3 {[%clk 0:01:44]} 36... Ra3+ {[%clk 0:01:46.3]} 37.
Kc2 {[%clk 0:01:36.6]} 37... Rxa2+ {[%clk 0:01:48.2]} 38. Kb3 {[%clk 0:01:38.5]}
38... Rh2 {[%clk 0:01:11.8]} 39. Ka4 {[%clk 0:01:36.7]} 39... Kd6 {[%clk
0:01:00.7]} 40. Kxa5 {[%clk 0:01:29.7]} 40... Rxh3 {[%clk 0:01:00.8]} 41. Kb6
{[%clk 0:01:28.1]} 41... Rh2 {[%clk 0:00:51.6]} 42. Kxb7 {[%clk 0:01:25.7]}
42... Rd2 {[%clk 0:00:51.5]} 43. Kb6 {[%clk 0:01:18.5]} 43... Rxd4 {[%clk
0:00:51.2]} 44. Kb5 {[%clk 0:01:20.4]} 44... Rd2 {[%clk 0:00:34]} 45. Kb4 {[%clk
0:01:20.1]} 45... d4 {[%clk 0:00:29.3]} 46. Kc4 {[%clk 0:01:20.9]} 46... Ke5
{[%clk 0:00:11.4]} 47. Nd3+ {[%clk 0:01:21.6]} 47... Kf5 {[%clk 0:00:12]} 48.
Kxd4 {[%clk 0:01:22]} 48... Kg5 {[%clk 0:00:12.4]} 49. Ke4 {[%clk 0:01:19.8]}
49... Ra2 {[%clk 0:00:08.2]} 50. Nc5 {[%clk 0:01:02.4]} 1-0

[Event "*** Titled Tuesday Blitz"]
[Site "Chess.com"]
[Date "2019.05.07"]
[Round "3"]
[White "Rodalquilar"]
[Black "Swarnapuri"]
[Result "1-0"]
[WhiteElo "2564"]
[BlackElo "2659"]
[TimeControl "180+2"]
[EndTime "13:39:50 PDT"]
[Termination "Rodalquilar won by resignation"]

1. d4 {[%clk 0:03:01.9]} 1... Nc6 {[%clk 0:03:01.9]} 2. Nf3 {[%clk 0:03:02.1]}
2... d5 {[%clk 0:03:02.8]} 3. c4 {[%clk 0:02:59]} 3... Bg4 {[%clk 0:03:04.1]} 4.
Bf4 {[%clk 0:02:58.1]} 4... e6 {[%clk 0:03:04.9]} 5. Nc3 {[%clk 0:02:58.9]} 5...
Bb4 {[%clk 0:03:06.1]} 6. e3 {[%clk 0:03:00]} 6... Nf6 {[%clk 0:03:06.8]} 7. Be2
{[%clk 0:02:57.5]} 7... O-O {[%clk 0:03:05.7]} 8. Qb3 {[%clk 0:02:58]} 8... Ne4
{[%clk 0:03:03.8]} 9. O-O {[%clk 0:02:58.4]} 9... Bxc3 {[%clk 0:03:02.2]} 10.
bxc3 {[%clk 0:02:59.5]} 10... Bxf3 {[%clk 0:02:54.4]} 11. Bxf3 {[%clk
0:02:55.6]} 11... Nd2 {[%clk 0:02:55.8]} 12. Qxb7 {[%clk 0:02:55.8]} 12... Na5
{[%clk 0:02:55.3]} 13. Qxc7 {[%clk 0:02:57]} 13... Nxf1 {[%clk 0:02:53]} 14.
Qxd8 {[%clk 0:02:11.9]} 14... Rfxd8 {[%clk 0:02:53.3]} 15. Bc7 {[%clk 0:02:13]}
15... Nd2 {[%clk 0:02:44.9]} 16. Bxa5 {[%clk 0:02:11.6]} 16... Rdc8 {[%clk
0:02:43.3]} 17. cxd5 {[%clk 0:02:03.1]} 17... Nxf3+ {[%clk 0:02:39.3]} 18. gxf3
{[%clk 0:02:05]} 18... exd5 {[%clk 0:02:41]} 19. e4 {[%clk 0:02:06.5]} 19...
Rab8 {[%clk 0:02:36.9]} 20. a4 {[%clk 0:01:55.9]} 20... Rb7 {[%clk 0:02:12.5]}
21. Rc1 {[%clk 0:01:32.7]} 21... Rd7 {[%clk 0:02:06.1]} 22. Rb1 {[%clk
0:01:33.8]} 22... f6 {[%clk 0:01:58.8]} 23. Rb5 {[%clk 0:01:34.3]} 23... Kf7
{[%clk 0:01:52.8]} 24. exd5 {[%clk 0:01:32.9]} 24... a6 {[%clk 0:01:52.2]} 25.
Rb6 {[%clk 0:01:20.2]} 25... Rc4 {[%clk 0:01:38.1]} 26. Bb4 {[%clk 0:00:37.5]}
26... a5 {[%clk 0:01:38.9]} 27. Bxa5 {[%clk 0:00:38.8]} 27... Rxa4 {[%clk
0:01:40.8]} 28. Rb5 {[%clk 0:00:39.8]} 28... Re7 {[%clk 0:01:25.7]} 29. Bb4
{[%clk 0:00:33.8]} 29... Re1+ {[%clk 0:01:25.8]} 30. Kg2 {[%clk 0:00:35]} 30...
g5 {[%clk 0:01:26.5]} 31. d6 {[%clk 0:00:26.5]} 31... Raa1 {[%clk 0:01:24.9]}
32. d7 {[%clk 0:00:23.9]} 32... Rg1+ {[%clk 0:01:22]} 33. Kh3 {[%clk 0:00:24.7]}
33... Ra8 {[%clk 0:01:18.6]} 34. Ba5 {[%clk 0:00:21.7]} 34... Ke7 {[%clk
0:01:04.4]} 35. Rd5 {[%clk 0:00:22.7]} 35... Rxa5 {[%clk 0:00:57.7]} 36. Rxa5
{[%clk 0:00:24.6]} 36... Kxd7 {[%clk 0:00:58.7]} 37. Ra6 {[%clk 0:00:19.7]}
37... Ke7 {[%clk 0:00:57.3]} 38. d5 {[%clk 0:00:20.9]} 38... Rd1 {[%clk
0:00:57]} 39. c4 {[%clk 0:00:21.9]} 39... Rd4 {[%clk 0:00:57]} 40. Rc6 {[%clk
0:00:21.5]} 40... h5 {[%clk 0:00:57.8]} 41. Kg2 {[%clk 0:00:18]} 41... Rd3
{[%clk 0:00:57.4]} 42. Re6+ {[%clk 0:00:13.9]} 42... Kf7 {[%clk 0:00:57.7]} 43.
Re3 {[%clk 0:00:15.6]} 43... Rd4 {[%clk 0:00:58.1]} 44. Re4 {[%clk 0:00:14.5]}
44... Rd3 {[%clk 0:00:58.6]} 45. f4 {[%clk 0:00:15.6]} 45... g4 {[%clk
0:00:56.8]} 46. f5 {[%clk 0:00:17]} 46... Rd2 {[%clk 0:00:52.9]} 47. Kf1 {[%clk
0:00:17.8]} 47... Rd1+ {[%clk 0:00:49.3]} 48. Ke2 {[%clk 0:00:18.6]} 48... Rh1
{[%clk 0:00:49.5]} 49. d6 {[%clk 0:00:19.4]} 49... Ra1 {[%clk 0:00:48.2]} 50. d7
{[%clk 0:00:18.7]} 50... Ra8 {[%clk 0:00:49.7]} 51. c5 {[%clk 0:00:19.6]} 1-0

[Event "*** Titled Tuesday Blitz"]
[Site "Chess.com"]
[Date "2019.05.07"]
[Round "3"]
[White "eldur16"]
[Black "plouarzel"]
[Result "1-0"]
[WhiteElo "2532"]
[BlackElo "2579"]
[TimeControl "180+2"]
[EndTime "13:39:52 PDT"]
[Termination "eldur16 won by resignation"]

1. d4 {[%clk 0:03:01.9]} 1... d6 {[%clk 0:03:01]} 2. e4 {[%clk 0:03:02]} 2...
Nf6 {[%clk 0:03:02.3]} 3. Nc3 {[%clk 0:03:02.4]} 3... e5 {[%clk 0:03:03.9]} 4.
Nf3 {[%clk 0:03:02.4]} 4... Nbd7 {[%clk 0:03:04.8]} 5. Bc4 {[%clk 0:03:02.7]}
5... exd4 {[%clk 0:03:05.5]} 6. Nxd4 {[%clk 0:03:02.2]} 6... Nb6 {[%clk
0:03:05.2]} 7. Bd3 {[%clk 0:02:58.3]} 7... Be7 {[%clk 0:03:06.1]} 8. O-O {[%clk
0:02:58.7]} 8... O-O {[%clk 0:03:08]} 9. Re1 {[%clk 0:02:58.5]} 9... c6 {[%clk
0:03:08.8]} 10. h3 {[%clk 0:02:57]} 10... Re8 {[%clk 0:03:03.7]} 11. a4 {[%clk
0:02:56]} 11... a5 {[%clk 0:03:04.2]} 12. Qf3 {[%clk 0:02:53.5]} 12... Nbd7
{[%clk 0:02:41.3]} 13. Nf5 {[%clk 0:02:48.6]} 13... Ne5 {[%clk 0:02:40.5]} 14.
Nxe7+ {[%clk 0:02:47.1]} 14... Qxe7 {[%clk 0:02:42.4]} 15. Qg3 {[%clk
0:02:47.7]} 15... Nh5 {[%clk 0:02:39.9]} 16. Qg5 {[%clk 0:02:43.5]} 16... Qxg5
{[%clk 0:02:33.2]} 17. Bxg5 {[%clk 0:02:43.2]} 17... h6 {[%clk 0:02:33.3]} 18.
Be3 {[%clk 0:02:40.5]} 18... Nf6 {[%clk 0:02:23.3]} 19. f4 {[%clk 0:02:36.3]}
19... Nxd3 {[%clk 0:02:21.9]} 20. cxd3 {[%clk 0:02:37.3]} 20... d5 {[%clk
0:02:13.5]} 21. Bd4 {[%clk 0:02:31.2]} 21... Be6 {[%clk 0:02:03.8]} 22. Bxf6
{[%clk 0:02:18.1]} 22... gxf6 {[%clk 0:02:05.7]} 23. f5 {[%clk 0:02:12]} 23...
Bd7 {[%clk 0:02:05.2]} 24. exd5 {[%clk 0:02:12.9]} 24... Bxf5 {[%clk 0:02:04.9]}
25. dxc6 {[%clk 0:01:58.2]} 25... bxc6 {[%clk 0:02:06.8]} 26. Rf1 {[%clk
0:01:58.2]} 26... Bxd3 {[%clk 0:02:07.5]} 27. Rxf6 {[%clk 0:01:58.8]} 27... Re6
{[%clk 0:01:58.4]} 28. Rxe6 {[%clk 0:01:56.2]} 28... fxe6 {[%clk 0:02:00.3]} 29.
Rd1 {[%clk 0:01:55.5]} 29... Bc2 {[%clk 0:01:45.7]} 30. Rd6 {[%clk 0:01:52.8]}
30... Kf7 {[%clk 0:01:46.9]} 31. Rxc6 {[%clk 0:01:52.7]} 31... Rb8 {[%clk
0:01:48.4]} 32. Rc5 {[%clk 0:01:45.4]} 32... Rxb2 {[%clk 0:01:47.1]} 33. Rxa5
{[%clk 0:01:46.1]} 33... Rb3 {[%clk 0:01:48.1]} 34. Rc5 {[%clk 0:01:46.1]} 34...
Ra3 {[%clk 0:01:46.3]} 35. a5 {[%clk 0:01:44.3]} 35... Ke7 {[%clk 0:01:44.5]}
36. Rc7+ {[%clk 0:01:26.4]} 36... Kd8 {[%clk 0:01:39.4]} 37. Rc5 {[%clk
0:01:18.9]} 37... Kd7 {[%clk 0:01:37.4]} 38. Kf2 {[%clk 0:01:18]} 38... Bd3
{[%clk 0:01:30.4]} 39. g3 {[%clk 0:00:57.3]} 39... Kd6 {[%clk 0:01:31.2]} 40.
Nb5+ {[%clk 0:00:46.1]} 40... Bxb5 {[%clk 0:01:18.1]} 41. Rxb5 {[%clk
0:00:46.4]} 41... e5 {[%clk 0:01:13.1]} 42. Rb6+ {[%clk 0:00:45.9]} 42... Kd5
{[%clk 0:01:14.6]} 43. Rxh6 {[%clk 0:00:46.4]} 43... Rxa5 {[%clk 0:01:16]} 44.
Kf3 {[%clk 0:00:43.9]} 44... Ra3+ {[%clk 0:01:12.5]} 45. Kg4 {[%clk 0:00:44.5]}
45... e4 {[%clk 0:01:14]} 46. Rh8 {[%clk 0:00:43.9]} 46... Rf3 {[%clk 0:01:03]}
47. h4 {[%clk 0:00:42.4]} 47... Rf7 {[%clk 0:01:01.7]} 48. Rd8+ {[%clk
0:00:37.8]} 48... Ke5 {[%clk 0:01:02.1]} 49. Re8+ {[%clk 0:00:38.6]} 49... Kd4
{[%clk 0:01:03.6]} 50. h5 {[%clk 0:00:39.3]} 50... Rg7+ {[%clk 0:01:04.5]} 51.
Kh4 {[%clk 0:00:39.5]} 51... e3 {[%clk 0:01:05.5]} 52. g4 {[%clk 0:00:39.8]}
52... Kd3 {[%clk 0:00:59]} 53. h6 {[%clk 0:00:40.2]} 53... Rh7 {[%clk
0:00:53.9]} 54. Kh5 {[%clk 0:00:39.9]} 54... e2 {[%clk 0:00:55.8]} 55. g5 {[%clk
0:00:39.5]} 55... Rh8 {[%clk 0:00:57.3]} 56. Rxe2 {[%clk 0:00:39.1]} 56... Kxe2
{[%clk 0:00:58.1]} 57. g6 {[%clk 0:00:39.9]} 57... Kf3 {[%clk 0:00:58]} 58. g7
{[%clk 0:00:40.5]} 58... Ra8 {[%clk 0:00:58.4]} 59. h7 {[%clk 0:00:39.4]} 59...
Ra5+ {[%clk 0:00:54]} 60. Kg6 {[%clk 0:00:39.9]} 60... Ra6+ {[%clk 0:00:54.5]}
61. Kf7 {[%clk 0:00:40.5]} 61... Ra7+ {[%clk 0:00:56.1]} 62. Kf6 {[%clk
0:00:41.4]} 62... Ra6+ {[%clk 0:00:56.9]} 63. Ke5 {[%clk 0:00:42.3]} 63... Ra5+
{[%clk 0:00:57.8]} 64. Kd4 {[%clk 0:00:43]} 64... Ra4+ {[%clk 0:00:59.4]} 65.
Kc3 {[%clk 0:00:43.8]} 65... Ra3+ {[%clk 0:01:00.9]} 66. Kb4 {[%clk 0:00:44.6]}
1-0

[Event "*** Titled Tuesday Blitz"]
[Site "Chess.com"]
[Date "2019.05.07"]
[Round "3"]
[White "Veiso"]
[Black "LastHeroJr"]
[Result "1-0"]
[WhiteElo "2365"]
[BlackElo "2473"]
[TimeControl "180+2"]
[EndTime "13:39:52 PDT"]
[Termination "Veiso won by resignation"]

1. d4 {[%clk 0:03:01.9]} 1... Nf6 {[%clk 0:03:00.4]} 2. Nf3 {[%clk 0:03:01]}
2... g6 {[%clk 0:03:01.4]} 3. c4 {[%clk 0:03:01.7]} 3... Bg7 {[%clk 0:03:02.6]}
4. Nc3 {[%clk 0:03:03.3]} 4... O-O {[%clk 0:03:03.7]} 5. e4 {[%clk 0:03:04.1]}
5... d6 {[%clk 0:03:05.1]} 6. Be2 {[%clk 0:03:05.7]} 6... e5 {[%clk 0:03:06.2]}
7. Be3 {[%clk 0:03:07]} 7... Ng4 {[%clk 0:03:04.3]} 8. Bg5 {[%clk 0:03:07.7]}
8... f6 {[%clk 0:03:05.7]} 9. Bc1 {[%clk 0:03:09.3]} 9... f5 {[%clk 0:03:07.1]}
10. Bg5 {[%clk 0:03:08.3]} 10... Qe8 {[%clk 0:03:08.4]} 11. dxe5 {[%clk
0:03:04.6]} 11... Nxe5 {[%clk 0:02:57.5]} 12. O-O {[%clk 0:02:58.9]} 12... Nbc6
{[%clk 0:02:48.4]} 13. Nd5 {[%clk 0:02:55.6]} 13... Qf7 {[%clk 0:02:45.4]} 14.
exf5 {[%clk 0:02:54.6]} 14... Bxf5 {[%clk 0:02:45.9]} 15. Nxe5 {[%clk 0:02:49]}
15... Bxe5 {[%clk 0:02:38.3]} 16. Qd2 {[%clk 0:02:47.9]} 16... Rae8 {[%clk
0:02:09.7]} 17. Rad1 {[%clk 0:02:43.1]} 17... Nd4 {[%clk 0:02:05.8]} 18. Bd3
{[%clk 0:02:43.9]} 18... Bxd3 {[%clk 0:01:32.8]} 19. Qxd3 {[%clk 0:02:45.8]}
19... c6 {[%clk 0:01:34.3]} 20. Ne3 {[%clk 0:02:35.9]} 20... Bg7 {[%clk
0:01:16.8]} 21. Ng4 {[%clk 0:02:29]} 21... Nf5 {[%clk 0:01:14.1]} 22. b3 {[%clk
0:02:26.6]} 22... Re6 {[%clk 0:01:04.3]} 23. Ne3 {[%clk 0:02:12.8]} 23... Nd4
{[%clk 0:00:58.4]} 24. Bh4 {[%clk 0:02:03.4]} 24... Rfe8 {[%clk 0:00:48.9]} 25.
Bg3 {[%clk 0:01:55.3]} 25... g5 {[%clk 0:00:41.1]} 26. h3 {[%clk 0:01:48.6]}
26... h5 {[%clk 0:00:42.1]} 27. h4 {[%clk 0:01:47.5]} 27... gxh4 {[%clk
0:00:39.7]} 28. Bxh4 {[%clk 0:01:48.7]} 28... Rg6 {[%clk 0:00:40.7]} 29. f4
{[%clk 0:01:39.9]} 29... c5 {[%clk 0:00:18.5]} 30. f5 {[%clk 0:01:40.2]} 30...
Rg4 {[%clk 0:00:12]} 31. Nxg4 {[%clk 0:01:37.4]} 31... hxg4 {[%clk 0:00:13.9]}
32. f6 {[%clk 0:01:38.1]} 32... Bh6 {[%clk 0:00:14.7]} 33. Rde1 {[%clk 0:01:34]}
33... Rxe1 {[%clk 0:00:10.3]} 34. Rxe1 {[%clk 0:01:34.9]} 34... Qh5 {[%clk
0:00:11.5]} 35. Re7 {[%clk 0:01:31.3]} 35... Bf8 {[%clk 0:00:06.6]} 36. g3
{[%clk 0:00:30]} 36... Bxe7 {[%clk 0:00:06.5]} 37. fxe7 {[%clk 0:00:31.9]} 37...
Nf3+ {[%clk 0:00:07.5]} 38. Kf2 {[%clk 0:00:30]} 38... Nxh4 {[%clk 0:00:07.8]}
39. gxh4 {[%clk 0:00:31.9]} 39... Qf7+ {[%clk 0:00:09.1]} 40. Kg3 {[%clk
0:00:31.7]} 40... Qxe7 {[%clk 0:00:10.5]} 41. Qg6+ {[%clk 0:00:30.9]} 41... Kf8
{[%clk 0:00:09.2]} 42. Kxg4 {[%clk 0:00:31.2]} 42... Qe2+ {[%clk 0:00:10.1]} 43.
Kg5 {[%clk 0:00:31.3]} 43... Qe3+ {[%clk 0:00:11.2]} 44. Kh5 {[%clk 0:00:32.1]}
44... Qe5+ {[%clk 0:00:12.1]} 45. Kh6 {[%clk 0:00:31.9]} 45... Qh8+ {[%clk
0:00:11.8]} 46. Kg5 {[%clk 0:00:31.4]} 46... Qe5+ {[%clk 0:00:12.9]} 47. Qf5+
{[%clk 0:00:32.1]} 47... Qxf5+ {[%clk 0:00:11]} 48. Kxf5 {[%clk 0:00:33.1]}
48... Ke7 {[%clk 0:00:10.2]} 49. h5 {[%clk 0:00:33.9]} 49... Kf7 {[%clk
0:00:08.9]} 50. h6 {[%clk 0:00:34.9]} 50... a6 {[%clk 0:00:09.7]} 51. h7 {[%clk
0:00:35.3]} 51... Kg7 {[%clk 0:00:11.1]} 52. Ke6 {[%clk 0:00:36.2]} 52... Kxh7
{[%clk 0:00:10.5]} 53. Kxd6 {[%clk 0:00:37.3]} 1-0

[Event "*** Titled Tuesday Blitz"]
[Site "Chess.com"]
[Date "2019.05.07"]
[Round "3"]
[White "KRASAVCHIK2002"]
[Black "Fins0905"]
[Result "1-0"]
[WhiteElo "2344"]
[BlackElo "2673"]
[TimeControl "180+2"]
[EndTime "13:39:55 PDT"]
[Termination "KRASAVCHIK2002 won by checkmate"]

1. e4 {[%clk 0:03:01.9]} 1... d5 {[%clk 0:02:59.5]} 2. exd5 {[%clk 0:03:02.3]}
2... Qxd5 {[%clk 0:03:01.4]} 3. Nc3 {[%clk 0:03:00.8]} 3... Qa5 {[%clk
0:03:01.7]} 4. d4 {[%clk 0:03:02.7]} 4... Nf6 {[%clk 0:03:02.6]} 5. Nf3 {[%clk
0:03:03.7]} 5... c6 {[%clk 0:03:03.7]} 6. Ne5 {[%clk 0:02:54.3]} 6... Be6 {[%clk
0:03:03.7]} 7. Bd3 {[%clk 0:02:36.4]} 7... g6 {[%clk 0:03:03.2]} 8. O-O {[%clk
0:02:31.4]} 8... Bg7 {[%clk 0:03:03.5]} 9. Re1 {[%clk 0:02:27.6]} 9... O-O
{[%clk 0:03:02]} 10. f3 {[%clk 0:02:16.3]} 10... Nbd7 {[%clk 0:03:01]} 11. a3
{[%clk 0:02:09.5]} 11... Nxe5 {[%clk 0:02:55.2]} 12. dxe5 {[%clk 0:02:08.6]}
12... Nd5 {[%clk 0:02:38.2]} 13. Bd2 {[%clk 0:02:05.5]} 13... Rfd8 {[%clk
0:02:27.5]} 14. Qe2 {[%clk 0:01:28.9]} 14... Qb6+ {[%clk 0:02:01.7]} 15. Kh1
{[%clk 0:01:27.3]} 15... Qxb2 {[%clk 0:01:53.2]} 16. Nxd5 {[%clk 0:01:24.2]}
16... Rxd5 {[%clk 0:01:52.2]} 17. f4 {[%clk 0:01:26.1]} 17... Qb6 {[%clk
0:01:44.1]} 18. a4 {[%clk 0:01:23.3]} 18... Rd7 {[%clk 0:01:37.6]} 19. a5 {[%clk
0:01:19]} 19... Qc7 {[%clk 0:01:34.6]} 20. Be3 {[%clk 0:01:14.8]} 20... c5
{[%clk 0:01:32.1]} 21. Be4 {[%clk 0:01:08.4]} 21... Bd5 {[%clk 0:01:22.6]} 22.
Qf3 {[%clk 0:01:05]} 22... e6 {[%clk 0:00:58.7]} 23. a6 {[%clk 0:01:02.8]} 23...
b6 {[%clk 0:00:56.3]} 24. c4 {[%clk 0:00:58.6]} 24... Bxe4 {[%clk 0:00:54.7]}
25. Qxe4 {[%clk 0:01:00.5]} 25... Rad8 {[%clk 0:00:55.1]} 26. Kg1 {[%clk
0:01:00.6]} 26... Rd3 {[%clk 0:00:51.1]} 27. Qb7 {[%clk 0:00:53]} 27... R8d7
{[%clk 0:00:41.7]} 28. Qf3 {[%clk 0:00:47.7]} 28... h5 {[%clk 0:00:40.5]} 29.
Red1 {[%clk 0:00:35.4]} 29... Qd8 {[%clk 0:00:35.6]} 30. Re1 {[%clk 0:00:30.4]}
30... Kh7 {[%clk 0:00:34.6]} 31. h3 {[%clk 0:00:29.1]} 31... Rc3 {[%clk
0:00:30.6]} 32. Qe4 {[%clk 0:00:27.1]} 32... Rdd3 {[%clk 0:00:29.2]} 33. Bf2
{[%clk 0:00:27.8]} 33... Rc2 {[%clk 0:00:23.1]} 34. Rf1 {[%clk 0:00:26.2]} 34...
Rdd2 {[%clk 0:00:23.5]} 35. Rad1 {[%clk 0:00:20.7]} 35... Rxd1 {[%clk
0:00:16.5]} 36. Qxc2 {[%clk 0:00:21.7]} 36... Rd3 {[%clk 0:00:15.4]} 37. Qe2
{[%clk 0:00:19.3]} 37... Rd2 {[%clk 0:00:08.2]} 38. Qe4 {[%clk 0:00:18.2]} 38...
Qd7 {[%clk 0:00:09.3]} 39. Qb7 {[%clk 0:00:17.2]} 39... Bh6 {[%clk 0:00:10.4]}
40. Bh4 {[%clk 0:00:13.2]} 40... Rd4 {[%clk 0:00:07.1]} 41. Be7 {[%clk
0:00:11.7]} 41... Bxf4 {[%clk 0:00:05.7]} 42. Rxf4 {[%clk 0:00:10.5]} 42... Rd1+
{[%clk 0:00:03]} 43. Kh2 {[%clk 0:00:11.1]} 43... Qd2 {[%clk 0:00:02.2]} 44.
Rxf7+ {[%clk 0:00:09.3]} 44... Kh6 {[%clk 0:00:03.7]} 45. Bf8+ {[%clk 0:00:07]}
45... Kg5 {[%clk 0:00:04.8]} 46. Qe7# {[%clk 0:00:07.1]} 1-0

[Event "*** Titled Tuesday Blitz"]
[Site "Chess.com"]
[Date "2019.05.07"]
[Round "3"]
[White "GMsKoRPioN"]
[Black "Chessialist"]
[Result "0-1"]
[WhiteElo "2583"]
[BlackElo "2570"]
[TimeControl "180+2"]
[EndTime "13:40:01 PDT"]
[Termination "Chessialist won by resignation"]

1. d4 {[%clk 0:02:52]} 1... Nf6 {[%clk 0:02:59.4]} 2. c4 {[%clk 0:02:52.8]} 2...
e6 {[%clk 0:02:59.3]} 3. Nc3 {[%clk 0:02:52.3]} 3... c5 {[%clk 0:02:59.6]} 4. d5
{[%clk 0:02:51.7]} 4... exd5 {[%clk 0:02:59.2]} 5. cxd5 {[%clk 0:02:51.9]} 5...
d6 {[%clk 0:03:00.8]} 6. e4 {[%clk 0:02:52.6]} 6... g6 {[%clk 0:03:02.5]} 7. f4
{[%clk 0:02:51.8]} 7... Bg7 {[%clk 0:03:03.9]} 8. Bb5+ {[%clk 0:02:53.1]} 8...
Nfd7 {[%clk 0:03:05.1]} 9. a4 {[%clk 0:02:54.5]} 9... Qh4+ {[%clk 0:03:05.4]}
10. g3 {[%clk 0:02:55]} 10... Qd8 {[%clk 0:03:07]} 11. Nf3 {[%clk 0:02:54]}
11... O-O {[%clk 0:03:08.1]} 12. O-O {[%clk 0:02:55.1]} 12... a6 {[%clk
0:03:09.3]} 13. Bc4 {[%clk 0:02:55.7]} 13... Re8 {[%clk 0:03:09.5]} 14. Re1
{[%clk 0:02:48.6]} 14... b6 {[%clk 0:03:04.6]} 15. Bd2 {[%clk 0:02:33.9]} 15...
Ra7 {[%clk 0:03:02.8]} 16. Qc2 {[%clk 0:02:27.8]} 16... Rc7 {[%clk 0:02:51.9]}
17. Re2 {[%clk 0:02:18.1]} 17... Nf8 {[%clk 0:02:51.1]} 18. Ree1 {[%clk
0:01:30.1]} 18... Bg4 {[%clk 0:02:48.2]} 19. Be2 {[%clk 0:01:25.5]} 19... Rce7
{[%clk 0:02:42.9]} 20. Ng5 {[%clk 0:01:25.5]} 20... Bxe2 {[%clk 0:02:43.2]} 21.
Rxe2 {[%clk 0:01:27.4]} 21... Nbd7 {[%clk 0:02:31.2]} 22. Rae1 {[%clk
0:01:28.1]} 22... Qc7 {[%clk 0:02:29.5]} 23. Be3 {[%clk 0:01:16.8]} 23... h6
{[%clk 0:02:23]} 24. Nf3 {[%clk 0:01:17.3]} 24... Bxc3 {[%clk 0:02:24]} 25. bxc3
{[%clk 0:01:13.9]} 25... Rxe4 {[%clk 0:02:23]} 26. Bf2 {[%clk 0:01:15.1]} 26...
Rxe2 {[%clk 0:02:22.5]} 27. Rxe2 {[%clk 0:01:17]} 27... Rxe2 {[%clk 0:02:23.5]}
28. Qxe2 {[%clk 0:01:18.9]} 28... Nf6 {[%clk 0:02:23.8]} 29. f5 {[%clk
0:00:47.7]} 29... Nxd5 {[%clk 0:02:15.1]} 30. fxg6 {[%clk 0:00:48.4]} 30... Nxg6
{[%clk 0:02:17]} 31. Qxa6 {[%clk 0:00:49.4]} 31... Nxc3 {[%clk 0:02:12.4]} 32.
Qa8+ {[%clk 0:00:49.8]} 32... Kg7 {[%clk 0:02:12.8]} 33. Nh4 {[%clk 0:00:47.4]}
33... Nxh4 {[%clk 0:02:06.3]} 34. gxh4 {[%clk 0:00:49.3]} 34... d5 {[%clk
0:02:07.3]} 35. Be1 {[%clk 0:00:45.1]} 35... Ne2+ {[%clk 0:01:46.2]} 36. Kf1
{[%clk 0:00:44.8]} 36... Qe5 {[%clk 0:01:37.6]} 37. Qc8 {[%clk 0:00:37.8]} 37...
h5 {[%clk 0:01:32.2]} 38. Qh3 {[%clk 0:00:30.5]} 38... Nf4 {[%clk 0:01:28.2]}
39. Qf3 {[%clk 0:00:23.2]} 39... Ng6 {[%clk 0:01:23.1]} 40. Bf2 {[%clk
0:00:17.7]} 40... Qa1+ {[%clk 0:01:19.7]} 41. Kg2 {[%clk 0:00:17.2]} 41... Qxa4
{[%clk 0:01:19.9]} 42. Qxd5 {[%clk 0:00:16.5]} 42... Qg4+ {[%clk 0:01:20.9]} 43.
Kf1 {[%clk 0:00:15.2]} 43... Qh3+ {[%clk 0:00:34.8]} 44. Kg1 {[%clk 0:00:16.4]}
44... Qg4+ {[%clk 0:00:28.3]} 45. Kf1 {[%clk 0:00:17.2]} 45... Qe6 {[%clk
0:00:28.3]} 46. Qxh5 {[%clk 0:00:17.2]} 46... Qc4+ {[%clk 0:00:29.6]} 47. Kg1
{[%clk 0:00:16.2]} 47... Qc1+ {[%clk 0:00:30.7]} 48. Kg2 {[%clk 0:00:12.7]}
48... Nf4+ {[%clk 0:00:31.3]} 0-1